Cogmind - Beta 11 @@@ ROGUE MODE // 2022.03.18 @ 15:38:27 Player: Steve French Result: Destroyed by G-47 Trooper with Particle Gun Performance ------------- Evolutions (0) 0 Regions Visited (1) 200 Robots Destroyed (17) 85 Value Destroyed (230) 230 Prototype IDs (0) 0 Alien Tech Used (0) 0 Bonus (0) 0 TOTAL SCORE: 515 Bonus ------- None Cogmind --------- Core Integrity 0/250 Matter 254/300 Energy 96/100 System Corruption 0% Temperature Cool (27) Movement Core (100) Ox1 Location -10/Materials Parts ------- > --- POWER (1) -------- (None) > --- PROPULSION (2) --- (None) > --- UTILITY (2) ------ Small Storage Unit > --- WEAPON (2) ------- (None) > --- INVENTORY (8) ---- Light Ion Engine Medium Matter Pod (100) Improved Terrain Scanner Peak State ------------ > --- POWER ------------ Light Ion Engine > --- PROPULSION ------- Light Treads Light Treads > --- UTILITY ---------- Small Storage Unit Improved Terrain Scanner > --- WEAPON ----------- Light Assault Rifle Mining Laser > --- INVENTORY -------- Light Ion Engine Light Ion Engine Medium Matter Pod Improved Terrain Scanner Seismic Detector EM Pulse Gun Small Laser Mining Laser [Rating: 10] Favorites ----------- Power Light Ion Engine Engine Light Ion Engine Propulsion Light Treads Treads Light Treads Flight Unit Flight Unit Utility Small Storage Unit Device Seismic Detector Storage Small Storage Unit Weapon Mining Laser Energy Gun EM Pulse Gun Ballistic Gun Light Assault Rifle Ballistic Cannon Light Cannon Special Weapon Mining Laser Build | -11 -10 ------- Run | Scr Mat Slots Evolved . | . . Power . | . . Propulsion . | . . Utility . | . . Weapon . | . . Parts Attached 21 | 12 9 Power 1 | 1 . Engine 1 | 1 . Core . | . . Reactor . | . . Propulsion 5 | 2 3 Treads 3 | 2 1 Leg . | . . Wheel . | . . Hover . | . . Flight 2 | . 2 Utility 5 | 3 2 Device 4 | 2 2 Storage 1 | 1 . Processor . | . . Hackware . | . . Protection . | . . Artifact . | . . Weapon 10 | 6 4 Energy Gun 3 | 2 1 Energy Cannon . | . . Ballistic Gun 2 | 1 1 Ballistic Cannon 1 | . 1 Launcher . | . . Special Weapon 4 | 3 1 Impact Weapon . | . . Slashing Weapon . | . . Piercing Weapon . | . . Special Melee Weapon . | . . Unidentified Prototypes . | . . Parts Lost 10 | . 10 Power 1 | . 1 Propulsion 3 | . 3 Utility 1 | . 1 Weapon 5 | . 5 Highest Loss Streak 7 | . 7 To Critical Strikes . | . . Average Slot Usage (%) 80 | . 80 Engine 8 | . 8 Treads 20 | . 20 Flight 6 | . 6 Device 7 | . 7 Storage 14 | . 14 Ballistic Gun 7 | . 7 Ballistic Cannon 7 | . 7 Special Weapon 7 | . 7 Naked Turns . | . . Heaviest Build 13 | 12 13 Greatest Support 40 | 40 40 Greatest Overweight (x) 1 | 1 1 Average Overweight (x) . | . . Largest Inventory Capacity 8 | 8 8 Average Capacity 7 | 7 8 Most Carried 8 | 8 8 Average Carried 6 | 6 6 Final Capacity 8 | 8 8 Final Carried 8 | 8 3 Class Distribution -------------------- 100% | Mutant Dominant Class ---------------- Mutant | -10/Materials Resources | -11 -10 ----------- Run | Scr Mat Matter Collected 601 | 428 173 Remotely . | . . Salvage Created 518 | 252 266 Parts 34 | 18 16 Haulers Intercepted . | . . Recyclers Shooed . | . . Parts Field Recycled . | . . Retrieved Matter . | . . Parts Self-Destructed . | . . Prevented . | . . Kills | -11 -10 ------- Run | Scr Mat Combat Hostiles Destroyed 7 | . 7 Guns 2 | . 2 Cannons 5 | . 5 Classes Destroyed 6 | 3 3 Worker 2 | 2 . Builder 1 | . 1 Tunneler 5 | 5 . Recycler 2 | 1 1 Swarmer 3 | . 3 Grunt 4 | . 4 Best Kill Streak 4 | 4 3 Combat Bots Only 3 | . 3 Max Kills in Single Turn 1 | 1 1 Gunslinging . | . . Exploded . | . . Melee . | . . Uniques/NPCs Destroyed . | . . Combat | -11 -10 -------- Run | Scr Mat Damage Taken 986 | . 986 Core 261 | . 261 Absorbed by Shields . | . . Core Remaining (%) 100 | 100 . Volleys Fired 120 | 59 61 Largest 2 | 2 2 Hottest 200 | 200 100 Shots Fired 143 | 74 69 Gun 69 | 39 30 Cannon 38 | . 38 Launcher . | . . Special 36 | 35 1 Kinetic 86 | 21 65 Thermal 45 | 44 1 Explosive . | . . Electromagnetic 12 | 9 3 Robot Hit Streak 5 | 5 3 Robot Miss Streak 5 | 1 5 Penetration Max . | . . Secondary Targets . | . . Shots Hit Robots 43 | 20 23 Core Hits 22 | 12 10 Critical Kills . | . . Critical Parts Destroyed . | . . Critical Strikes 3 | . 3 Blast 3 | . 3 Melee Attacks . | . . Impact . | . . Slashing . | . . Piercing . | . . Sneak Attacks . | . . Combat Hostiles . | . . Follow-up Attacks . | . . Damage Inflicted 622 | 222 400 Guns 341 | 222 119 Cannons 281 | . 281 Explosions . | . . Melee . | . . Ramming . | . . Kinetic 436 | 81 355 Thermal 54 | 54 . Explosive . | . . Electromagnetic 132 | 87 45 Impact . | . . Slashing . | . . Piercing . | . . Highest Corruption . | . . Average Corruption . | . . Corruption Purged . | . . Corruption Blocked . | . . Overload Shots . | . . Overflow Damage . | . . Projectiles . | . . Explosions . | . . Melee . | . . Knockbacks 4 | . 4 Impact . | . . Kinetic 4 | . 4 Secondary . | . . Self-Inflicted Damage . | . . Shots . | . . Rammed . | . . Targets Rammed . | . . Kicked . | . . Crushed . | . . Highest Temperature 82 | 82 38 Average Temperature 26 | 29 8 Received Heat Transfer 327 | . 327 Siege Activations . | . . Robots Corrupted . | . . Combat Hostiles . | . . Parts Fried . | . . Impact Corruptions . | . . Robots Melted . | . . Combat Hostiles . | . . Parts Melted . | . . Heat Transferred 125 | 125 . Parts Sabotaged . | . . Parts Stolen . | . . Parts Stripped . | . . Power Chain Reactions . | . . Missiles Intercepted . | . . Alert | -11 -10 ------- Run | Scr Mat Peak Influence 186 | 40 186 Initial . | . . Average 42 | 17 85 Maximum Alert Level . | . . Low Security (%) 100 | 100 100 Level 1 . | . . Level 2 . | . . Level 3 . | . . Level 4 . | . . Level 5 . | . . High Security . | . . Max Security . | . . Squads Dispatched 1 | . 1 Investigation 1 | . 1 Extermination . | . . Reinforcement . | . . Assault . | . . Garrison . | . . Intercept . | . . Searches Triggered . | . . Construction Impeded . | . . Haulers Reinforced . | . . Active Scanning Responses . | . . Cargo Convoy Interrupts . | . . Stealth | -11 -10 --------- Run | Scr Mat Distress Signals 1 | . 1 Communications Jammed . | . . Distress Signals . | . . Times Spotted 16 | . 16 Peak Tracking Total 6 | . 6 Tactical Retreats . | . . Traps | -11 -10 ------- Run | Scr Mat Traps Triggered 1 | . 1 Indirectly . | . . Trap Hack Attempts . | . . Triggered . | . . Disarmed . | . . Reprogrammed . | . . Reused . | . . Traps Extracted . | . . Installed . | . . Triggered . | . . Machines | -11 -10 ---------- Run | Scr Mat Machines Disabled 1 | . 1 Max in Single Turn 1 | . 1 Machines Sabotaged . | . . Garrisons Compromised . | . . Overloaded Fab Kills . | . . Hacking | -11 -10 --------- Run | Scr Mat Machines Accessed 1 | . 1 Terminals 1 | . 1 Fabricators . | . . Repair Stations . | . . Recycling Units . | . . Scanalyzers . | . . Garrison Access . | . . Total Hacks 4 | . 4 Successful 1 | . 1 Failed 3 | . 3 Catastrophic . | . . Database Lockouts . | . . Manual . | . . Terminals 4 | . 4 Fabricators . | . . Repair Stations . | . . Recycling Units . | . . Scanalyzers . | . . Garrison Access . | . . Terminal Hacks 1 | . 1 Emergency Access Points 1 | . 1 Fabricator Hacks . | . . Repair Station Hacks . | . . Recycling Unit Hacks . | . . Scanalyzer . | . . Garrison Access Hacks . | . . Unauthorized Hacks . | . . Terminals . | . . Fabricators . | . . Repair Stations . | . . Recycling Units . | . . Scanalyzers . | . . Garrison Access . | . . Data Cores Recovered . | . . Used . | . . Hacking Detections 1 | . 1 Full Trace Events 1 | . 1 Feedback Events . | . . Feedback Blocked . | . . Robot Schematics Acquired . | . . Robots Built . | . . Authchips . | . . Time . | . . Total Robot Build Rating . | . . Part Schematics Acquired . | . . Parts Built . | . . Authchips . | . . Time . | . . Total Part Build Rating . | . . Parts Repaired . | . . Time . | . . Parts Recycled . | . . Recycled Matter . | . . Retrieved Matter . | . . Retrieved Components . | . . Parts Scanalyzed . | . . Part Schematics Acquired . | . . Parts Damaged . | . . Bothacking | -11 -10 ------------ Run | Scr Mat Used RIF Installer . | . . Robots Hacked . | . . Non-combat . | . . Combat . | . . Robot Hacks Applied . | . . Relay Couplers Released . | . . Fabnet Peak Effective % . | . . Robots Rewired . | . . Allies Hacked . | . . Hacks Repelled . | . . Allies | -11 -10 -------- Run | Scr Mat Total Allies . | . . Largest Group . | . . Highest-Rated Group . | . . Highest-Rated Ally . | . . Total Orders . | . . Ally Attacks . | . . Total Damage . | . . Kills . | . . Allies Corrupted . | . . Allies Melted . | . . Intel | -11 -10 ------- Run | Scr Mat Robot Analysis Total . | . . Derelict Logs Recovered . | . . Drone Launches . | . . Drone Recoveries . | . . Exploration | -11 -10 ------------- Run | Scr Mat Turns Passed 889 | 554 335 Spaces Moved 403 | 248 155 Core 78 | 70 8 Treads 267 | 178 89 Legs . | . . Wheels . | . . Hover . | . . Flight 58 | . 58 Fastest Speed 37 | 50 37 Average Speed 128 | 131 123 Slowest Speed 160 | 160 160 Overloaded Moves . | . . Propulsion Burnouts . | . . Robots Hopped . | . . Cave-ins Triggered . | . . Exploration Rate (%) 14 | 8 20 Regions Visited 1 Branch Regions . Pre-discovered Areas . | . . Known Exits Taken . | . . Unknown Exits Taken 1 | 1 . Scrap Searched . | . . Spaces Dug 15 | 15 . Terrain Destroyed 21 | 21 . Melee . | . . Projectile 21 | 21 . AOE . | . . Terrain Rammed . | . . Walls Destroyed . | . . Machines Disabled . | . . Actions | -11 -10 --------- Run | Scr Mat Total 566 | 333 233 Wait . | . . Move 402 | 247 155 Hop . | . . Pick Up 17 | 14 3 Fast Attach 3 | 2 1 Attach 11 | 6 5 Detach . | . . Swap 7 | 4 3 Drop 6 | 1 5 Fire 120 | 59 61 Melee . | . . Ram . | . . Kick . | . . Crush . | . . Escape Stasis . | . . Rewire . | . . Trap . | . . Miscellaneous . | . . Route ------- -11/Scrapyard -10/Materials History --------- Turn | Location | Event 3 | -11/Scrapyard | Discovered new exit (range 14) 555 | -11/Scrapyard | Entered Materials 579 | -10/Materials | Build established: Mutant 782 | -10/Materials | Lost 3 parts (1p1u1w) 848 | -10/Materials | Core integrity fell below 50% 875 | -10/Materials | Core integrity fell below 20% 890 | -10/Materials | Destroyed by G-47 Trooper with Particle Gun Last Messages --------------- 00852_ S-10 Pest knocked back. 00857_ Lgt. Cannon destroyed. 00857_ Flight Unit destroyed. 00859_ S-10 Pest destroyed. 00863_ G-34 Mercenary destroyed. 00866_ EM Pulse Gun destroyed. 00866_ R-06 Scavenger collects Lgt. Ion Engine. 00867_ R-06 Scavenger collects Lgt. Assault Rifle. 00871_ R-06 Scavenger collects Flight Unit. 00872_ R-06 Scavenger collects Aluminum Leg. 00873_ Lgt. Treads destroyed. 00874_ R-06 Scavenger collects Ion Engine. 00875_ R-06 Scavenger collects Sml. Laser. 00876_ Lgt. Assault Rifle destroyed. 00876_ R-06 Scavenger collects Aluminum Leg. 00878_ R-06 Scavenger collects Heat Sink. 00878_ Critical hit (Burn: +37). 00882_ Mining Laser destroyed. 00884_ Flight Unit destroyed. 00890_ Critical hit (Burn: +37). Map ----- +----------------------------------------------------+ | ????????????????????????????????????????? | | ????????????????????????????????????????? | | ????????????????????????????????????????? | | ????????????????????????????????????????? | | ????????????????????????????????????????? | | ????????????????????????????????????????? | | ????????????????????????????????????????? | | ????????????????????????????????????????? | | ????????????????????????????????????????? | | ????????????????????????????????????????? | | ????????????????????????##??????????????? | | ???????????????????????# ""?????? ?????? | | ???????????????????????# "Y"???? ????? | | ???????????????????????# ??? ?????? | | ???????????????????????# ?? ??????? | | ???????????????????????# """ #??????? | | ??????????#????????????# """ #??????? | | ??????????# ???????????# """ ???????? | | ??????????# ??????????+% ????????? | | ??????????# ??????????# ?????????? | | ??????????# ?????????# %^%#??????????? | | ?????????## #????????# %#####???????? | | ?????????# ######### ^# ???????? | | ?????????# g ^+ ???????? | | ?????????+ ^# ???????? | | ?????????# @ s # ???????? | | ?????????# ## ! ???????? | | ?????????###### #? ???????? | | ??????????????# #?? ?####### | | ??????????????#a #?? ?# """ | | ??????????????# #??#+#?# "T" | | ??????????????##+### ####%### | | ?????????###?? ? # %% # ! | | ????????? + + + | | ?????????# # ?"" #####% # [ """ | | ?????????# #??"" ????### "" # """ | | ?????????# +??"" ???????# """ # """ | | ?????????# #?? ???????# """ # | | ?????????# ####+######### "" ####### | | ?????????# #?????? | | ?????????+ #?????? | | ?????????# #?????? | | ?????????# ### #############+####?????? | | ?????????# ## #?????????????????????? | | ?????????# ! ## #?????????????????????? | | ?????????# ######?????????????????????? | | ?????????#####??????????????????????????? | | ????????????????????+????+??????????????? | | ????????????????????????????????????????? | | ????????????????????????????????????????? | +----------------------------------------------------+ Best States ------------- Heat Dissipation 25 Energy Generation 10 Energy Capacity 125 Matter Stores 300 Matter Capacity 300 Sight Range 16 Terrain Scan Range 16 Terrain Scan Density 10 Evasion (%) 50 Recoil Reduction 2 Item Schematics ----------------- None Robot Schematics ------------------ None Fabricated ------------ Nothing Alien Tech Used ----------------- None Achievements -------------- Storm Trooper Challenges ------------ None Game ------ Seed DerelictThermalSuperbattery Manual? 0 Play Time 00:16:17 Cumulative 1.0 hours Start 2022.03.18 @ 15:21:04 End 2022.03.18 @ 15:38:27 Sessions 1 Manual Loads 0 Difficulty Rogue Special Mode None Game No. 4 Rogue 4 Adventurer 0 Explorer 0 Win Type - Total 0 Types 0/0/0/0/0/0/0/0/0 Lore% 0 Gallery% 3 Achievement% 3 Wizard Run 0 Options --------- ASCII 0 Keyboard 0 Movement Mouse Keybinds 0 Fullscreen 1 Font 18/SmallcapsGlow Map View 76x50 Tactical HUD 1 Map Filters NONE Filters NONE Steam 1 RUN: 4d24dc98-7b15-47fd-b15e-e2b4a9435402